bitfinex/quotes_ETHUSD_20251107
["timestamp","ask_amount","ask_price","bid_price","bid_amount"]
[1762540907004,6.6128846,3431.0,3430.9,0.22762]
[1762540907335,3.69828245,3431.0,3430.9,0.22762]
[1762540907543,7.23481192,3431.0,3430.9,0.22762]
[1762540909604,4.32020977,3431.0,3430.9,0.22762]
[1762540909933,7.23481192,3431.0,3430.9,0.22762]
[1762540910140,4.32020977,3431.0,3430.9,0.22762]
[1762540910312,8.01259576,3431.0,3430.9,0.22762]
[1762540911144,7.23481192,3431.0,3430.9,0.22762]
[1762540911307,7.23481192,3431.0,3430.2,0.001]
[1762540911308,3.38074199,3430.6,3430.2,0.001]
[1762540911506,3.38074199,3430.6,3429.7,0.001]
[1762540911507,4.58075289,3429.9,3429.7,0.001]
[1762540911733,0.405504,3429.8,3429.7,0.001]
[1762540911938,5.31834901,3429.8,3429.7,0.001]
[1762540913019,6.57806101,3429.8,3429.7,0.001]
[1762540913219,6.57806101,3429.8,3429.1,0.005]
[1762540913220,1.665216,3429.5,3429.1,0.005]
[1762540913419,5.66882026,3429.5,3429.1,0.005]
[1762540913620,6.14202026,3429.5,3429.1,0.005]
[1762540913845,7.16921154,3429.5,3429.1,0.005]
[1762540914022,7.94678529,3429.5,3429.1,0.005]
[1762540914219,3.32163604,3429.2,3429.1,0.005]
[1762540914432,5.12836336,3429.2,3429.1,0.005]
[1762540914635,5.60156336,3429.2,3429.1,0.005]
[1762540914941,6.75975786,3429.2,3429.1,0.005]
[1762540915249,6.75975786,3429.2,3428.6,0.001]
[1762540915250,3.32197623,3428.8,3428.6,0.001]
[1762540915412,4.59820355,3428.8,3428.6,0.001]
[1762540915616,5.07140355,3428.8,3428.6,0.001]
[1762540916027,2.15493132,3428.8,3428.6,0.001]
[1762540916316,2.70009067,3428.8,3428.6,0.001]
[1762540916534,2.22689067,3428.8,3428.6,0.001]
[1762540916738,0.89043814,3429.9,3428.7,0.2553]
[1762540916912,0.89043814,3429.9,3428.8,2.91641608]
[1762540916913,1.1922,3429.8,3428.8,2.91641608]
[1762540917239,3.07324282,3429.8,3428.7,0.001]
[1762540917440,0.1985,3428.8,3428.7,0.001]
[1762540917639,1.124504,3428.8,3428.7,0.001]
[1762540917965,0.719,3428.8,3428.7,0.001]
[1762540918142,1.124504,3428.8,3428.7,0.001]
[1762540918347,0.719,3428.8,3428.7,0.001]
[1762540918639,0.719,3428.8,3428.7,3.17185729]
[1762540919242,0.8646,3428.8,3428.7,3.17185729]
[1762540919545,0.719,3428.8,3428.7,3.42615729]
[1762540919747,0.719,3428.8,3428.7,3.17185729]
[1762540920052,0.719,3428.8,3428.7,3.42615729]
[1762540920543,9.32675603,3430.3,3428.7,3.42615729]
[1762540920544,0.62227345,3430.0,3429.0,2.91630212]
[1762540920762,0.62227345,3430.3,3430.2,2.91521239]
[1762540920931,0.005,3430.9,3430.3,2.91518779]
[1762540921247,0.719,3430.8,3430.2,3.16955493]
[1762540921423,0.719,3430.8,3429.9,0.1232]
[1762540921612,0.4732,3430.7,3429.7,3.03883384]
[1762540921827,0.4732,3430.7,3429.5,2.91585529]
[1762540921828,2.91509367,3430.5,3429.4,2.91589109]
[1762540922162,1.5007858,3430.4,3428.9,2.91634943]
[1762540922364,0.405504,3430.2,3429.6,2.91572941]
[1762540922551,0.405504,3430.0,3429.0,0.2543]
[1762540922751,0.719,3430.1,3428.8,2.91640793]
[1762540922752,0.405504,3429.8,3428.8,2.91640793]
[1762540923064,0.405504,3429.8,3429.1,2.91620806]
[1762540923228,0.405504,3429.8,3428.8,0.2543]
[1762540923229,0.405504,3429.7,3429.0,2.91622898]
[1762540923435,0.405504,3429.7,3428.7,0.001]
[1762540923635,1.18274214,3429.5,3428.7,0.001]
[1762540923835,0.405504,3429.3,3428.7,0.001]
[1762540924192,0.405504,3429.1,3428.8,2.91647223]
[1762540924478,1.3410818,3429.2,3429.1,2.91621708]
[1762540924682,1.124504,3429.2,3429.1,3.17051708]
[1762540924977,1.124504,3429.2,3428.7,0.001]
[1762540925129,1.124504,3429.2,3429.1,3.17051708]
[1762540925331,0.77723814,3430.1,3429.8,2.91556329]
[1762540925643,9.00975173,3431.3,3429.2,2.91613204]
[1762540925644,0.62486429,3430.2,3430.1,2.91536209]
[1762540925845,0.719,3430.2,3430.1,3.16966689]
[1762540926070,0.719,3430.2,3430.1,3.42396689]
[1762540926242,0.719,3430.2,3430.1,3.16966689]
[1762540926445,0.719,3430.2,3429.5,0.2543]
[1762540926669,0.719,3430.2,3428.7,0.001]
[1762540926670,0.405504,3430.1,3429.4,0.2543]
[1762540926878,0.719,3430.2,3430.0,2.91545189]
[1762540927036,0.719,3430.2,3430.1,3.42396689]
[1762540927353,0.719,3430.8,3430.7,2.91485702]
[1762540927770,0.719,3430.8,3430.7,3.42345702]
[1762540929476,0.005,3430.9,3430.8,2.91477206]
[1762540929646,0.002,3431.4,3431.0,2.91460215]
[1762540929838,0.002,3431.4,3431.3,3.29984733]
[1762540930253,0.002,3431.4,3431.3,3.55414733]
[1762540930672,0.002,3431.4,3431.3,3.69974733]
[1762540930879,0.002,3431.7,3431.6,2.91409255]
[1762540931080,0.005,3431.9,3431.8,2.91392272]
[1762540931371,0.005,3431.9,3431.8,3.42252272]
[1762540931938,0.005,3431.9,3431.8,3.16822272]
[1762540932138,0.005,3431.9,3431.8,2.91392272]
[1762540932736,0.005,3431.9,3431.3,1.645212]
[1762540932941,0.005,3431.9,3431.3,0.1312]
[1762540933163,0.005,3431.9,3431.7,2.91399754]
[1762540933370,0.005,3431.9,3431.3,2.91434249]
[1762540933371,0.405504,3431.7,3431.3,2.91434249]
[1762540933577,0.005,3431.9,3431.4,2.91421379]
[1762540933735,0.005,3431.9,3430.8,3.16904231]
[1762540933736,0.4879,3431.8,3430.8,2.91477206]
[1762540933944,0.405504,3431.7,3430.7,3.04601649]
[1762540934270,1.02882563,3431.7,3430.7,0.1312]
[1762540934575,0.405504,3431.7,3431.2,2.91436935]
[1762540934771,0.405504,3431.7,3431.3,2.91428218]
[1762540935275,0.005,3431.9,3431.4,2.91423355]
[1762540935458,0.005,3431.9,3430.7,0.1312]
[1762540935459,0.005,3431.9,3430.9,0.02914687]
[1762540935663,0.005,3431.9,3431.8,2.91392272]
[1762540936063,0.405504,3431.8,3430.8,0.2543]
[1762540936244,0.4809,3431.7,3430.5,1.259712]
[1762540936446,0.19,3431.9,3431.8,2.91392272]
[1762540936447,0.005,3431.9,3431.8,2.91392272]
[1762540936973,0.405504,3431.8,3430.9,2.9146871]
[1762540937182,0.005,3431.9,3430.9,0.2543]
[1762540937337,0.005,3431.9,3431.1,2.91445287]
[1762540937543,0.005,3431.9,3431.6,2.91405203]
[1762540937740,0.005,3431.9,3431.7,2.91397864]
[1762540937964,0.405504,3431.8,3431.0,0.2543]
[1762540938164,0.405504,3431.8,3431.5,2.91412571]
[1762540938365,0.405504,3431.8,3431.6,2.91408739]
[1762540938780,0.405504,3431.6,3430.4,4.17477427]
[1762540938945,0.405504,3431.6,3430.3,0.2543]
[1762540938946,0.405504,3431.4,3430.2,0.1312]
[1762540939154,0.82679811,3431.4,3431.0,2.91453491]
[1762540939365,0.19,3431.9,3430.2,0.1312]
[1762540939366,0.405504,3431.8,3430.5,1.259712]
[1762540939585,0.405504,3431.8,3431.4,2.91423519]
[1762540939792,0.405504,3431.8,3431.0,0.02914602]
[1762540939955,0.405504,3431.8,3431.3,2.91428381]
[1762540940147,0.405504,3431.8,3431.3,2.914344]
[1762540940347,0.893404,3431.8,3431.3,2.914344]
[1762540940549,1.06400981,3431.8,3430.6,0.2543]
[1762540940751,0.405504,3431.8,3431.3,2.91429361]
[1762540940951,0.551104,3431.5,3431.4,2.91424817]
[1762540941204,0.405504,3431.4,3430.9,0.1456]
[1762540941498,0.19,3431.9,3431.2,2.91443226]
[1762540941499,0.1456,3431.3,3431.2,2.91443226]
[1762540941706,0.005,3431.9,3430.3,2.91517057]
[1762540941707,0.19,3431.9,3430.6,0.2543]
[1762540941855,0.19,3431.9,3430.7,1.259712]
[1762540941856,0.6779,3431.9,3430.7,1.259712]
[1762540942049,0.405504,3431.8,3430.2,1.390912]
[1762540942352,0.405504,3431.8,3431.0,2.91452312]
[1762540942353,0.39971891,3431.7,3431.0,2.91452312]
[1762540942760,0.88761891,3431.7,3431.1,2.91445744]
[1762540942985,0.4879,3431.7,3431.2,2.91441139]
[1762540943161,0.405504,3431.6,3430.9,2.91462428]
[1762540943486,0.405504,3431.6,3431.0,2.91453942]
[1762540943665,0.405504,3431.6,3430.4,2.91511194]
[1762540943666,0.405504,3431.6,3431.1,2.91450416]
[1762540943867,0.405504,3431.5,3431.0,2.91459358]
[1762540944063,0.405504,3431.5,3430.4,2.91511194]
[1762540944064,0.405504,3431.5,3430.4,2.91507566]
[1762540944269,0.405504,3430.4,3429.2,0.2543]
[1762540944601,0.185,3431.0,3429.2,0.2543]
[1762540944602,0.405504,3430.9,3429.5,2.91587694]
[1762540944765,0.405504,3430.9,3430.8,2.91477206]
[1762540944966,0.185,3430.9,3429.1,0.006]
[1762540945266,0.405504,3430.8,3429.2,0.2543]
[1762540945469,3.3203422,3430.8,3429.2,1.259712]
[1762540945787,3.3203422,3430.8,3429.1,0.006]
[1762540945788,0.405504,3429.2,3429.1,0.006]
[1762540946185,1.374304,3429.2,3429.1,0.006]
[1762540946580,0.4879,3429.8,3429.5,2.91586127]
[1762540946887,0.4879,3429.8,3429.1,0.006]
[1762540946888,0.405504,3429.8,3429.6,2.91573228]
[1762540947188,0.405504,3430.2,3429.1,0.03516217]
[1762540947390,0.55726976,3430.2,3429.1,0.006]
[1762540947576,0.55726976,3430.2,3429.1,2.92221588]
[1762540947577,0.405504,3430.0,3429.1,2.92221588]
[1762540947775,1.02975759,3430.0,3429.1,0.006]
[1762540948099,1.02975759,3430.0,3429.2,2.91612411]
[1762540948100,0.405504,3429.8,3429.2,2.91612411]
[1762540948304,0.405504,3429.8,3429.1,2.92221635]
[1762540948601,0.405504,3429.7,3429.2,2.91607422]
[1762540948779,0.405504,3429.7,3429.1,2.9221909]
[1762540949181,0.405504,3429.6,3429.1,0.006]
[1762540949490,0.82694954,3429.6,3429.1,0.006]
[1762540949669,0.405504,3429.6,3429.2,2.91611703]
[1762540949875,0.405504,3429.5,3429.2,2.91611703]
[1762540950204,0.405504,3429.5,3429.1,0.006]
[1762540950366,0.405504,3429.7,3429.2,2.91611922]
[1762540950575,0.62500242,3429.9,3429.8,2.9156219]
[1762540950770,0.62500242,3429.9,3429.1,0.006]
[1762540950771,0.9688,3429.9,3429.1,0.006]
[1762540950975,0.405504,3429.6,3429.2,2.9160729]
[1762540951172,0.4879,3430.2,3429.2,2.91613204]
[1762540951376,0.62477631,3430.4,3429.7,2.91570691]
[1762540951683,0.62477631,3430.4,3429.1,0.2603]
[1762540951684,0.405504,3429.6,3429.1,3.06780461]
[1762540951886,0.551104,3429.6,3429.5,2.91587694]
[1762540952400,0.551104,3429.6,3429.5,3.17017694]
[1762540952401,0.1456,3429.6,3429.5,3.17017694]
[1762540952580,0.1456,3429.6,3429.5,2.91587694]
[1762540953010,1.001704,3429.6,3429.1,0.1516]
[1762540953173,0.405504,3429.3,3429.1,0.006]
[1762540953881,0.405504,3429.4,3429.1,0.006]
[1762540954395,0.4506,3429.2,3429.1,0.006]
[1762540954594,0.405504,3429.3,3429.1,0.006]
[1762540955178,0.405504,3429.6,3429.1,0.006]
[1762540955481,0.405504,3429.6,3429.2,2.91612003]
[1762540955694,0.889204,3429.6,3429.2,2.91606893]
[1762540955895,0.889204,3429.6,3429.2,2.91609845]
[1762540956098,0.405504,3429.6,3429.1,0.006]
[1762540956282,0.43604015,3430.4,3429.8,2.91555335]
[1762540956501,0.185,3430.9,3429.7,2.9156887]
[1762540956502,0.405504,3430.5,3429.7,2.9156887]
[1762540956696,0.62452144,3430.6,3429.1,2.92216174]
[1762540956697,4.58042848,3430.3,3429.1,2.92216174]
[1762540956896,0.405504,3429.4,3429.1,2.92216174]
[1762540957097,0.405504,3429.4,3429.2,2.91610338]
[1762540957308,0.405504,3429.7,3429.3,2.91597731]
[1762540957677,0.405504,3429.7,3429.1,2.92220077]
[1762540957678,0.405504,3429.6,3429.2,2.91611233]
[1762540957874,0.405504,3429.6,3429.1,0.006]
[1762540958075,0.405504,3429.4,3429.1,0.006]
[1762540958479,0.4837,3429.5,3429.1,0.006]
[1762540958480,0.405504,3429.6,3429.1,0.006]
[1762540958990,6.59604461,3430.2,3429.1,0.006]
[1762540958991,0.405504,3429.8,3429.5,2.91582409]
[1762540959183,0.405504,3429.8,3429.1,0.006]
[1762540959379,0.4837,3430.4,3429.1,0.006]
[1762540959380,1.10805347,3430.4,3429.1,0.006]
[1762540959594,0.4837,3430.4,3429.2,2.91613204]
[1762540959813,0.405504,3430.3,3429.8,2.91555256]
[1762540960120,0.405504,3430.3,3429.1,2.92216901]
[1762540960294,0.405504,3430.3,3429.8,2.91557284]
[1762540960494,0.405504,3430.3,3429.7,2.91568943]
[1762540960696,0.68283095,3430.3,3429.1,0.006]
[1762540960902,0.405504,3430.1,3429.5,2.91582155]
[1762540961112,0.405504,3430.1,3429.1,0.006]
[1762540961113,0.889504,3430.1,3429.6,2.91576577]
[1762540961718,0.484,3430.0,3429.6,2.91576577]
[1762540961922,0.484,3430.0,3429.1,0.006]
[1762540962129,0.405504,3429.9,3429.3,2.91598423]
[1762540962286,0.405504,3429.9,3429.1,0.006]
[1762540962490,0.405504,3429.9,3429.4,2.91592481]
[1762540962693,0.405504,3429.8,3429.3,2.91601074]
[1762540963437,0.405504,3429.8,3429.1,2.92221677]
[1762540963733,0.551104,3429.3,3429.2,2.91613204]
[1762540963899,0.1456,3429.3,3429.2,2.94529336]
[1762540964101,0.1456,3429.3,3429.2,3.17043204]
[1762540964434,0.1456,3429.3,3429.1,0.006]
[1762540964733,0.1456,3429.3,3429.1,2.92218031]
[1762540965038,0.405504,3429.2,3429.1,2.92221708]
[1762540965203,0.405504,3429.7,3429.2,2.91611873]
[1762540965398,0.405504,3429.7,3429.1,2.92218234]
[1762540965736,0.892804,3429.2,3429.1,0.006]
[1762540966437,1.376804,3429.2,3429.1,0.006]
[1762540966936,0.892804,3429.2,3429.1,0.006]
[1762540969499,1.52873026,3429.2,3429.1,0.006]
[1762540970316,2.15575846,3429.2,3429.1,0.006]
[1762540972139,5.0718905,3429.2,3429.1,0.006]
[1762540972307,2.93661361,3429.2,3429.1,0.006]
[1762540973314,2.15575846,3429.2,3429.1,0.006]
[1762540973513,0.6270282,3429.2,3429.1,2.92221708]
[1762540974025,1.5983282,3429.2,3429.1,0.006]
[1762540974249,1.0325322,3429.2,3429.1,0.006]
[1762540974948,0.6270282,3429.2,3429.1,3.17651708]
[1762540975251,0.7726282,3429.2,3429.1,0.006]
[1762540975851,0.7726282,3429.2,3429.1,2.92221708]
[1762540975852,1.1781322,3429.2,3429.1,2.92221708]
[1762540976257,1.1781322,3429.2,3429.1,0.006]
[1762540976627,2.45104949,3429.2,3429.1,0.006]
[1762540976829,1.1781322,3429.2,3429.1,2.92221708]
[1762540977165,1.6654322,3429.2,3429.1,0.006]
[1762540977368,1.1781322,3429.2,3429.1,0.006]
[1762540977521,1.96374949,3429.2,3429.1,0.006]
[1762540980124,1.96374949,3429.2,3429.1,2.92221708]
[1762540980373,1.1781322,3429.2,3429.1,2.92221708]
[1762540980779,1.1781322,3429.2,3429.1,3.17651708]
[1762540980978,0.7726282,3429.2,3429.1,3.43081708]
[1762540981120,0.7726282,3429.2,3429.1,0.006]
[1762540981121,1.81814949,3429.2,3429.1,0.006]
[1762540981326,1.0325322,3429.2,3429.1,2.92221708]
[1762540981823,1.0325322,3429.2,3429.1,0.006]
[1762540982325,0.6270282,3429.2,3429.1,3.20567925]
[1762540983229,0.6270282,3429.4,3429.3,2.916047]
[1762540983521,0.6270282,3429.4,3429.1,0.006]
[1762540983722,0.405504,3429.7,3429.1,0.006]
[1762540983922,0.405504,3429.2,3429.1,2.92221708]
[1762540984171,0.62947629,3429.2,3429.1,2.92221708]
[1762540984325,0.62947629,3429.2,3429.1,3.43081708]
[1762540984972,0.78684537,3429.7,3429.5,2.91587694]
[1762540984973,0.62947629,3429.6,3429.5,2.91587694]
[1762540985338,0.62947629,3429.6,3429.5,3.17017694]
[1762540985527,0.62947629,3429.6,3429.5,3.42447694]
[1762540986158,0.62947629,3429.6,3429.1,2.92221708]
[1762540986159,0.405504,3429.5,3429.1,0.006]
[1762540986361,1.6673143,3429.2,3429.1,0.006]
[1762540986565,1.03498029,3429.2,3429.1,2.92221708]
[1762540986731,1.03498029,3429.2,3429.1,0.006]
[1762540987129,0.62947629,3429.2,3429.1,2.92221708]
[1762540987469,0.62947629,3429.2,3429.1,0.2603]
[1762540988265,0.62947629,3429.2,3429.1,0.006]
[1762540988468,1.03498029,3429.2,3429.1,0.006]
[1762540988760,1.32086796,3429.2,3429.1,0.006]
[1762540988971,1.32086796,3429.2,3429.1,3.17651708]
[1762540988972,1.03498029,3429.2,3429.1,3.17651708]
[1762540989333,0.62947629,3429.2,3429.1,3.17651708]
[1762540989573,0.62947629,3429.2,3429.1,3.43081708]
[1762540989867,0.62947629,3429.5,3429.4,2.91596197]
[1762540990243,0.62947629,3429.7,3429.4,0.5086]
[1762540990583,0.7868103,3430.1,3429.1,0.006]
[1762540990789,2.78319517,3431.5,3430.5,2.91498633]
[1762540990790,0.7868103,3430.7,3430.5,2.91498633]
[1762540991081,0.62916654,3430.6,3430.5,2.91498633]
[1762540991230,0.4908,3431.3,3430.3,2.91517157]
[1762540991231,0.7868103,3431.4,3430.6,0.2543]
[1762540991431,1.0390861,3431.7,3430.0,1.390912]
[1762540991432,0.62839361,3431.3,3430.0,1.390912]
[1762540991629,0.62839361,3431.2,3430.6,2.91493626]
[1762540991895,0.62839361,3431.1,3430.6,2.91493626]
[1762540992041,0.2857794,3431.2,3430.0,1.390912]
[1762540992042,1.11919361,3431.0,3430.3,2.91512498]
[1762540992244,0.405504,3430.6,3430.2,2.91526547]
[1762540992427,0.405504,3430.6,3430.0,0.1312]
[1762540992628,0.405504,3430.6,3429.4,0.2543]
[1762540992629,0.405504,3430.4,3429.4,0.2543]
[1762540992863,0.405504,3430.4,3430.1,2.91536515]
[1762540993066,0.62839361,3430.6,3429.7,2.91568005]
[1762540993067,0.405504,3430.5,3429.7,2.91568005]
[1762540993273,0.405504,3430.5,3429.2,0.2543]
[1762540993274,0.405504,3430.3,3429.2,0.2543]
[1762540993563,0.405504,3430.3,3429.2,4.43011204]
[1762540993764,0.62839361,3430.5,3429.4,1.259712]
[1762540993966,0.405504,3430.4,3429.7,2.91562633]
[1762540994139,3.32061817,3430.4,3429.1,0.006]
[1762540994339,0.405504,3430.2,3429.2,3.17041219]
[1762540994646,0.405504,3430.2,3429.9,2.9155272]
[1762540994843,0.405504,3430.3,3429.9,2.91548016]
[1762540995183,0.62839361,3430.5,3430.4,2.91511194]
[1762540995468,0.62839361,3430.8,3430.4,2.91511194]
[1762540995674,0.405504,3430.7,3430.4,2.91511194]
[1762540995973,0.405504,3430.7,3430.2,0.1312]
[1762540996173,1.11919361,3430.8,3430.7,2.91485702]
[1762540996174,0.62839361,3430.8,3430.7,2.91485702]
[1762540996353,1.0370861,3431.3,3430.8,2.914726]
[1762540996354,0.62839361,3431.0,3430.8,2.914726]
[1762540996546,2.0465223,3431.3,3430.2,0.1312]
[1762540996547,0.79965222,3431.2,3430.2,0.1312]
[1762540996751,0.1847,3430.9,3430.2,0.1312]
[1762540996970,0.1847,3430.9,3430.7,2.91484543]
[1762540997170,0.1847,3430.9,3430.2,0.1312]
[1762540997171,1.03389761,3431.1,3430.8,2.91477206]
[1762540997480,1.14458065,3431.1,3430.2,3.04643729]
[1762540997659,0.405504,3430.9,3430.2,2.91527312]
[1762540997859,0.405504,3430.9,3429.3,0.2543]
[1762540998059,0.6597,3430.3,3430.0,2.91540826]
[1762540998281,0.405504,3430.2,3429.1,0.006]
[1762540998484,0.896304,3430.2,3429.1,0.006]
[1762540998686,0.6597,3430.3,3429.1,0.006]
[1762540998687,0.405504,3430.0,3429.1,0.006]
[1762540998897,0.405504,3429.7,3429.1,0.006]
[1762540999101,0.880504,3429.2,3429.1,0.006]
[1762540999466,1.371304,3429.2,3429.1,0.006]
[1762540999796,1.99969761,3429.2,3429.1,0.006]
[1762541000357,0.62839361,3429.2,3429.1,0.006]
[1762541000555,1.5278861,3429.8,3429.1,0.006]
[1762541000556,1.03389761,3429.5,3429.1,0.006]
[1762541000781,0.405504,3429.6,3429.2,2.91611724]
[1762541000982,1.03389761,3429.6,3429.1,2.92218742]
[1762541001182,0.896304,3429.6,3429.2,2.9161244]
[1762541001397,0.896304,3429.6,3429.3,2.91604671]
[1762541001578,0.62839361,3429.7,3429.2,2.91613204]
[1762541001579,0.1456,3429.3,3429.2,2.91613204]
[1762541001988,0.1456,3429.3,3429.2,3.45389336]
[1762541002164,0.1456,3429.8,3429.5,2.91579799]
[1762541002492,0.1456,3429.8,3429.7,2.91565123]
[1762541002961,0.1456,3429.8,3429.1,0.006]
[1762541002962,0.405504,3429.7,3429.1,0.006]
[1762541003161,0.405504,3429.5,3429.1,0.006]
[1762541003386,0.880504,3429.2,3429.1,0.006]
[1762541003975,1.99969761,3429.2,3429.1,0.006]
[1762541005009,2.78650791,3429.2,3429.1,0.006]
[1762541005168,5.70263995,3429.2,3429.1,0.006]
[1762541005373,6.96235195,3429.2,3429.1,0.006]
[1762541005573,8.79515697,3429.2,3429.1,0.006]
[1762541005768,5.87902493,3429.2,3429.1,0.006]
[1762541005975,5.62619472,3429.2,3429.1,0.006]
[1762541006217,2.63174533,3429.2,3429.1,0.006]
[1762541006403,1.84752782,3429.2,3429.1,0.006]
[1762541006914,1.0370861,3429.6,3429.1,0.006]
[1762541006915,1.27501751,3429.6,3429.1,0.006]
[1762541007074,0.4908,3429.6,3429.5,2.91587694]
[1762541007271,1.0370861,3430.0,3429.6,2.91579192]
[1762541007272,0.62715125,3429.7,3429.6,2.91579192]
[1762541007515,0.1847,3430.3,3430.2,2.9152819]
[1762541007809,0.4908,3430.6,3429.1,0.4125]
[1762541007810,0.62699332,3430.6,3430.1,0.1312]
[1762541008023,0.81169332,3430.9,3430.5,2.91498051]
[1762541008174,0.81169332,3430.9,3430.0,0.1312]
[1762541008175,0.81169332,3430.9,3430.8,2.91477206]
[1762541008377,0.62699332,3431.0,3430.0,1.797412]
[1762541008581,0.1847,3431.5,3430.7,2.91478519]
[1762541008792,0.1847,3431.5,3430.3,2.91519279]
[1762541008793,0.405504,3431.4,3430.1,0.4065]
[1762541008993,0.1847,3431.5,3431.4,2.9142624]
[1762541009206,0.1847,3431.5,3430.0,0.1312]
[1762541009207,0.4908,3431.4,3430.0,0.1312]
[1762541009394,0.475,3431.3,3430.0,0.1312]
[1762541009692,0.475,3431.3,3431.0,2.91454361]
[1762541009930,0.475,3431.3,3431.1,2.91450274]
[1762541010223,0.405504,3431.2,3430.2,1.259712]
[1762541010523,0.4908,3431.2,3430.0,0.1312]
[1762541010743,0.405504,3431.1,3430.0,3.04661433]
[1762541011018,0.25338001,3431.4,3431.0,2.91454751]
[1762541011374,1.30228262,3431.5,3430.0,0.1312]
[1762541011375,0.475,3431.1,3430.0,0.1312]
[1762541011576,0.2833,3430.8,3430.3,2.91516467]
[1762541011789,0.1847,3430.4,3430.3,2.91516467]
[1762541012325,0.6743,3430.7,3430.4,2.91508286]
[1762541012873,0.6743,3430.7,3430.6,2.91494199]
[1762541012874,0.1835,3430.7,3430.6,2.91494199]
[1762541013111,0.589004,3430.7,3430.6,2.91494199]
[1762541014026,0.1456,3430.7,3430.6,2.91494199]
[1762541014531,0.78621751,3431.8,3430.6,3.72794199]
[1762541014692,0.78621751,3431.8,3431.6,2.91409255]
[1762541014693,0.002,3431.8,3431.6,2.91409255]
[1762541015327,0.4872,3431.7,3431.5,2.91413715]
[1762541015623,0.4872,3431.7,3430.8,0.1232]
[1762541015624,0.405504,3431.5,3430.8,0.1232]
[1762541015998,0.2811,3431.6,3431.3,2.91428592]
[1762541015999,0.405504,3431.6,3431.3,2.91428592]
[1762541016614,0.405504,3431.5,3430.8,3.03791492]
[1762541016824,0.405504,3431.5,3431.4,2.9142624]
[1762541016998,0.002,3431.7,3431.6,2.91409255]
[1762541018187,0.002,3431.7,3431.6,3.32059255]
[1762541018400,0.002,3431.7,3428.6,0.001]
[1762541018602,0.407504,3431.7,3431.5,2.91411055]
[1762541018981,0.002,3431.7,3431.6,2.91409255]
[1762541019708,0.002,3431.7,3431.6,3.32059255]
[1762541020925,0.002,3431.7,3431.0,2.91455516]
[1762541020926,0.002,3431.7,3430.2,2.91524182]
[1762541021127,0.002,3431.7,3431.1,2.91446041]
[1762541021128,0.405504,3431.6,3431.1,2.91446041]
[1762541021294,0.405504,3431.6,3431.3,2.91429843]
[1762541021495,0.405504,3431.6,3430.8,0.1232]
[1762541021496,0.002,3431.7,3431.5,0.4065]
[1762541021727,0.002,3431.7,3431.6,3.32059255]
[1762541022520,0.002,3431.7,3431.6,3.75623347]
[1762541022724,0.002,3431.7,3431.6,5.01594547]
[1762541023528,1e-08,3431.8,3431.7,4.98671963]
[1762541024231,1e-08,3431.8,3431.7,4.58021963]
[1762541024646,1e-08,3431.8,3431.7,5.0158597]
[1762541024928,1e-08,3431.8,3431.7,4.98671963]
[1762541025433,1e-08,3431.8,3431.7,5.13231963]
[1762541025637,1e-08,3431.8,3431.7,4.72581963]
[1762541025799,1e-08,3431.8,3431.7,4.17371963]
[1762541026428,1e-08,3431.8,3431.7,2.91400763]
[1762541027209,1e-08,3431.8,3431.7,3.32050763]
[1762541027411,1e-08,3431.8,3431.7,2.91400763]
[1762541028408,1e-08,3431.8,3431.7,3.3496477]
[1762541028616,1e-08,3431.8,3431.7,3.32050763]
[1762541029005,1e-08,3431.8,3431.7,2.91400763]
[1762541031122,1e-08,3431.8,3431.3,0.4065]
[1762541031325,1e-08,3431.8,3430.6,0.1232]
[1762541031326,0.405504,3431.3,3430.6,0.1232]
[1762541031526,0.405504,3431.1,3430.6,2.914889]
[1762541031707,0.55958881,3431.1,3430.0,1.259712]
[1762541031907,0.405504,3431.1,3430.8,2.91469054]
[1762541032239,0.405504,3431.1,3430.9,0.001]
[1762541032735,1.357404,3431.0,3430.9,0.001]
[1762541033158,1.357404,3431.0,3430.9,2.9156871]
[1762541033444,0.40550401,3431.8,3431.5,2.91412235]
[1762541033810,0.88370401,3431.8,3431.6,2.91405652]
[1762541034004,0.88370401,3431.8,3430.9,0.001]
[1762541034005,1e-08,3431.8,3430.9,0.4075]
[1762541034200,1e-08,3431.8,3431.7,2.91400763]
[1762541034512,0.40550401,3431.8,3430.9,0.001]
[1762541034710,0.40550401,3431.8,3431.7,2.91400763]
[1762541034935,1e-08,3431.8,3431.7,2.91400763]
[1762541035443,0.95190001,3431.8,3430.9,0.001]
[1762541035643,0.405504,3431.7,3430.9,0.001]
[1762541036351,1.0387244,3431.7,3431.4,2.91425228]
[1762541036524,1.0387244,3431.7,3431.5,2.91414545]
[1762541036923,0.9519,3431.6,3430.9,0.001]
[1762541037224,0.9519,3431.6,3431.4,2.91420596]
[1762541037754,0.9184,3431.5,3431.4,2.91420596]
[1762541038217,1.03149052,3431.8,3431.2,2.91443226]
[1762541038432,0.1456,3431.5,3431.0,2.91460215]
[1762541038756,0.1456,3431.5,3431.4,2.9142624]
[1762541039571,1.10418652,3431.8,3431.5,2.91410257]
[1762541039572,0.14560001,3431.8,3431.5,2.91410257]
[1762541039740,0.14560001,3431.8,3431.7,2.91400763]
[1762541040155,0.61930001,3431.8,3431.7,2.91400763]
[1762541040357,1.09750001,3431.8,3431.7,2.91400763]
[1762541040664,0.14560001,3431.8,3431.7,2.91400763]
[1762541041163,0.14560001,3431.8,3431.7,3.7561477]
[1762541041164,1e-08,3431.8,3431.7,3.7561477]
[1762541041325,0.005,3432.9,3432.5,2.91332847]
[1762541041521,0.005,3432.9,3432.5,4.57954047]
[1762541041952,0.1928,3432.9,3432.5,4.17304047]
[1762541042191,0.005,3432.9,3432.5,4.57954047]
[1762541042421,0.005,3432.9,3432.5,4.98604047]
[1762541043422,1e-08,3432.9,3432.8,4.57928587]
[1762541044320,1e-08,3432.9,3432.8,4.17278587]
[1762541044627,1e-08,3432.9,3432.8,2.91307387]